bitfinex-derivatives/quotes_SOLF0:USTF0_20251109
["timestamp","ask_amount","ask_price","bid_price","bid_amount"]
[1762729380811,3.06,166.37,166.27,3.06]
[1762729381016,140.3,166.41,166.27,3.06]
[1762729381207,3.06,166.4,166.28,3.06]
[1762729381406,0.0414867,166.36,166.28,3.06]
[1762729381610,0.0414867,166.36,166.32,3.10245304]
[1762729381821,0.04232321,166.36,166.32,3.09907647]
[1762729384710,0.04232321,166.36,166.32,0.03907647]
[1762729385619,2.92232321,166.36,166.32,0.03907647]
[1762729385913,0.04232321,166.36,166.32,3.03907647]
[1762729387316,0.04232321,166.36,166.32,8.45157647]
[1762729387624,0.04232321,166.36,166.32,0.03907647]
[1762729388217,2.92232321,166.36,166.32,0.03907647]
[1762729394322,5.4122,166.34,166.24,3.0]
[1762729394525,2.88,166.34,166.24,3.0]
[1762729395222,2.88,166.34,166.25,3.0]
[1762729395423,0.04133879,166.31,166.28,3.04274738]
[1762729395625,0.04323042,166.31,166.28,3.045285]
[1762729396218,0.04323042,166.31,166.28,0.045285]
[1762729396628,2.92323042,166.31,166.28,0.045285]
[1762729397320,0.04323042,166.31,166.28,0.045285]
[1762729397630,2.92323042,166.31,166.28,0.045285]
[1762729398529,2.88,166.4,166.28,3.045285]
[1762729398725,2.88,166.4,166.28,3.0]
[1762729399526,2.88,166.4,166.32,0.04097586]
[1762729399732,2.91837568,166.36,166.32,0.04097586]
[1762729399921,2.91837568,166.36,166.32,0.04582473]
[1762729401134,2.88,166.34,166.32,0.04582473]
[1762729401534,2.88,166.35,166.32,0.04582473]
[1762729402627,8.2922,166.33,166.21,3.0]
[1762729403126,2.88,166.32,166.21,3.0]
[1762729403335,2.88,166.32,166.22,3.0]
[1762729403835,2.88,166.32,166.25,3.04314278]
[1762729403836,0.03801301,166.29,166.25,3.04314278]
[1762729405033,2.91801301,166.29,166.25,0.04314278]
[1762729405239,8.33171301,166.29,166.25,0.04314278]
[1762729405439,2.88,166.28,166.25,0.04314278]
[1762729405737,2.88,166.28,166.17,3.0]
[1762729405933,8.2944,166.27,166.17,3.0]
[1762729406136,2.88,166.26,166.17,3.0]
[1762729406535,5.4154,166.24,166.17,3.0]
[1762729406736,0.04039477,166.22,166.19,0.04433399]
[1762729408545,2.92039477,166.22,166.19,0.04433399]
[1762729408944,0.04039477,166.22,166.19,0.04433399]
[1762729409352,2.92039477,166.22,166.19,0.04433399]
[1762729409745,2.92039477,166.22,166.06,3.0]
[1762729409949,2.88,166.18,166.06,3.0]
[1762729410149,5.4183,166.15,166.06,3.0]
[1762729410650,0.0432307,166.12,166.09,0.04046725]
[1762729411049,2.9232307,166.12,166.09,0.04046725]
[1762729411358,2.9232307,166.12,166.02,3.0]
[1762729411546,2.88,166.12,166.02,3.0]
[1762729412244,3.03990901,166.09,166.05,0.04097366]
[1762729412445,3.0,166.08,165.98,3.06]
[1762729412639,3.0,166.06,165.96,235.60291962]
[1762729413054,3.0,166.06,165.94,3.06]
[1762729413252,3.0,166.03,165.94,3.06]
[1762729413453,0.03807818,166.0,165.97,0.03873248]
[1762729414050,3.03807818,166.0,165.97,0.03873248]
[1762729414249,0.03807818,166.0,165.97,3.09873248]
[1762729414549,3.0,166.16,166.0,3.06]
[1762729414949,3.0,166.13,166.0,3.06]
[1762729415151,3.0,166.17,166.02,3.06]
[1762729415344,0.04030215,166.11,166.08,0.03964154]
[1762729416151,0.04030215,166.11,166.08,3.09964154]
[1762729416663,0.04030215,166.11,166.08,0.03964154]
[1762729417452,3.04030215,166.11,166.08,0.03964154]
[1762729418659,3.04030215,166.11,165.99,3.06]
[1762729418956,3.0,166.11,165.99,3.06]
[1762729419351,3.0,166.07,165.95,3.06]
[1762729419752,3.04121861,166.03,165.99,0.03814345]
[1762729420754,5.69707119,166.03,165.99,0.03814345]
[1762729420955,3.0,166.02,165.99,0.03814345]
[1762729421161,3.0,166.0,165.92,3.06]
[1762729421357,3.0,165.98,165.88,3.06]
[1762729421555,3.0,166.1,165.93,3.06]
[1762729421851,3.0,166.05,165.89,3.06]
[1762729422046,3.0,166.05,165.92,3.06]
[1762729422252,0.04295673,166.0,165.97,0.03934212]
[1762729422452,3.04295673,166.0,165.97,0.03934212]
[1762729422652,0.04295673,166.0,165.97,0.03934212]
[1762729422864,0.04295673,166.0,165.97,3.09934212]
[1762729424456,3.0,166.15,166.0,3.06]
[1762729424766,3.0,166.13,166.0,3.06]
[1762729425267,5.65585258,166.18,166.0,3.06]
[1762729425459,3.0,166.17,166.0,3.06]
[1762729425650,0.04287235,166.11,166.07,3.10188598]
[1762729425854,0.04287235,166.11,166.07,3.09956235]
[1762729426864,0.04287235,166.11,166.07,0.03956235]
[1762729427061,3.04287235,166.11,166.07,0.03956235]
[1762729427659,3.11,166.1,165.99,2.87]
[1762729427866,5.4206,166.08,165.99,2.87]
[1762729428061,3.11,166.1,165.99,2.87]
[1762729428457,3.11,166.09,165.99,2.87]
[1762729428653,0.0396579,166.06,166.02,0.04615891]
[1762729429168,0.0396579,166.06,166.02,2.91615891]
[1762729429969,0.0396579,166.06,166.02,8.33815891]
[1762729430270,0.0396579,166.06,166.03,2.87]
[1762729430662,0.0396579,166.06,166.02,0.04615891]
[1762729430867,0.0396579,166.06,166.02,2.91615891]
[1762729433075,0.0396579,166.06,166.02,8.33815891]
[1762729433263,0.0396579,166.06,166.03,2.87]
[1762729434270,0.0396579,166.06,166.04,2.87]
[1762729434473,3.11,166.16,166.04,2.87]
[1762729435172,5.4181,166.15,166.04,2.87]
[1762729435476,0.03827308,166.11,166.08,0.04598872]
[1762729436066,3.11,166.1,166.08,0.04598872]
[1762729436268,0.03827308,166.11,166.08,0.04598872]
[1762729436476,0.03827308,166.11,166.08,2.91598872]
[1762729436775,3.11,166.09,165.97,2.87]
[1762729436963,3.11,166.07,165.97,2.87]
[1762729437277,8.5308,166.07,165.97,2.87]
[1762729437775,0.04427519,166.04,166.0,2.91584987]
[1762729437976,0.0408603,166.04,166.0,2.91610092]
[1762729438580,0.0408603,166.04,166.0,8.33880092]
[1762729438773,0.0408603,166.04,166.01,2.87]
[1762729439781,0.0408603,166.04,166.0,0.04610092]
[1762729439782,3.1508603,166.04,166.0,0.04610092]
[1762729440076,8.532,166.03,166.0,0.04610092]
[1762729440879,0.0408603,166.04,166.0,0.04610092]
[1762729440880,8.5325,166.02,166.0,0.04610092]
[1762729441176,8.5325,166.02,165.88,262.0797397]
[1762729441177,3.11,166.01,165.88,2.87]
[1762729441780,3.11,165.98,165.83,2.87]
[1762729441984,8.354,165.97,165.83,2.87]
[1762729442178,4.4463411,166.0,165.86,2.93]
[1762729442382,0.04596451,165.92,165.89,2.93]
[1762729442572,0.03823492,165.92,165.89,2.93]
[1762729442774,0.03823492,165.92,165.89,2.97516234]
[1762729443083,0.03823492,165.92,165.89,0.04516234]
[1762729445879,0.03823492,165.92,165.89,2.97516234]
[1762729446189,2.93,166.03,165.89,2.97516234]
[1762729446377,2.93,166.03,165.9,2.93]
[1762729446977,0.04171698,165.98,165.95,2.97578408]
[1762729447287,2.93,166.07,165.95,2.93]
[1762729448088,0.04517192,166.03,165.99,0.03967157]
[1762729448289,2.93,166.02,165.99,0.03967157]
[1762729448980,0.04517192,166.03,165.99,0.03967157]
[1762729449186,2.93,166.01,165.99,0.03967157]
[1762729449884,8.3529,166.01,165.99,0.03967157]
[1762729450084,2.93,166.0,165.99,0.03967157]
[1762729450285,2.93,166.0,165.91,2.93]
[1762729450676,2.93,166.04,165.92,2.93]
[1762729451097,8.3526,166.02,165.92,2.93]
[1762729451398,2.97590137,165.99,165.95,0.04433334]
[1762729451687,2.97590137,165.99,165.95,0.04023792]
[1762729454587,0.04590137,165.99,165.95,2.97023792]
[1762729455186,0.04590137,165.99,165.96,2.93]
[1762729455698,0.04590137,165.99,165.96,8.354]
[1762729455995,0.04590137,165.99,165.96,2.93]
[1762729456296,0.04590137,165.99,165.95,0.04023792]
[1762729456487,2.97590137,165.99,165.95,0.04023792]
[1762729458495,0.04590137,165.99,165.95,0.04023792]
[1762729459895,0.04590137,165.99,165.95,2.97023792]
[1762729460200,0.04590137,165.99,165.97,2.93]
[1762729460497,8.3504,166.08,165.97,8.3537]
[1762729460896,2.93,166.08,165.97,8.3537]
[1762729461191,5.4209,166.07,165.97,8.3537]
[1762729461594,0.04543429,166.04,166.0,0.04237218]
[1762729461995,0.04543429,166.04,166.0,2.97237218]
[1762729462191,2.97543429,166.04,166.0,0.04237218]
[1762729462598,2.93,166.03,166.0,0.04237218]
[1762729463202,0.04543429,166.04,166.0,0.04237218]
[1762729463396,2.97543429,166.04,166.0,0.04237218]
[1762729463807,2.93,166.03,166.0,0.04237218]
[1762729464796,5.4225,166.02,166.0,0.04237218]
[1762729464996,2.93,166.01,166.0,0.04237218]
[1762729465297,8.3531,166.0,165.89,8.3564]
[1762729465501,8.3531,166.0,165.89,2.93]
[1762729466090,0.04471319,165.96,165.93,0.04057709]
[1762729466901,2.97471319,165.96,165.93,0.04057709]
[1762729468497,8.3548,165.95,165.93,0.04057709]
[1762729468909,2.93,165.94,165.93,0.04057709]
[1762729470906,2.93,165.94,165.87,2.93]
[1762729471102,8.3551,165.94,165.87,2.93]
[1762729471802,4.4463411,166.02,165.89,0.03857424]
[1762729471803,2.93,165.91,165.89,0.03857424]
[1762729472114,2.93,165.91,165.88,0.04467798]
[1762729472305,2.97512274,165.91,165.88,0.04467798]
[1762729472516,0.04512274,165.91,165.88,0.04467798]
[1762729473003,3.17512274,165.91,165.88,0.04467798]
[1762729473813,3.13,165.89,165.88,0.04467798]
[1762729474006,3.13,165.89,165.77,2.87]
[1762729474212,5.4274,165.87,165.77,2.87]
[1762729474508,3.13,165.89,165.77,2.87]
[1762729474714,5.4271,165.88,165.77,8.3002]
[1762729474914,5.4271,165.88,165.78,2.87]
[1762729475107,0.04298237,165.85,165.81,2.90261547]
[1762729476012,0.04298237,165.85,165.82,2.87]
[1762729476311,0.04298237,165.85,165.81,1.23261547]
[1762729476312,0.04298237,165.85,165.81,2.90261547]
[1762729476508,0.04298237,165.85,165.81,0.03261547]
[1762729476812,3.17298237,165.85,165.81,0.03261547]
[1762729477216,0.04298237,165.85,165.81,0.03261547]
[1762729477409,3.17298237,165.85,165.81,0.03261547]
[1762729477803,3.13,165.84,165.81,0.03261547]
[1762729478010,0.04298237,165.85,165.81,0.03261547]
[1762729478207,3.17298237,165.85,165.81,0.03261547]
[1762729478802,0.04298237,165.85,165.81,0.03261547]
[1762729479015,3.13,165.83,165.71,2.87]
[1762729479711,3.13,165.83,165.73,2.87]
[1762729479918,0.03926153,165.8,165.73,2.87]
[1762729480410,3.16926153,165.8,165.7,2.87]
[1762729480612,3.13,165.8,165.7,2.87]
[1762729480816,0.0435086,165.77,165.7,2.87]
[1762729483312,0.0435086,165.77,165.71,8.3022]
[1762729484116,0.0435086,165.77,165.72,2.87]
[1762729484808,3.1735086,165.77,165.72,2.87]
[1762729485009,3.1735086,165.77,165.71,5.4322]
[1762729485212,3.1735086,165.77,165.69,5.433]
[1762729486516,8.6042086,165.77,165.69,5.433]
[1762729486904,8.6040086,165.77,165.68,262.80803371]
[1762729487922,8.471,165.76,165.68,268.24123371]
[1762729488218,0.04230137,165.74,165.68,268.24123371]
[1762729489007,0.04230137,165.74,165.66,5.4339]
[1762729489317,0.03967117,165.72,165.65,3.09]
[1762729489519,0.03967117,165.72,165.68,5.4332]
[1762729489709,0.03967117,165.72,165.68,8.5232]
[1762729490912,0.03967117,165.72,165.66,5.434]
[1762729491518,0.03967117,165.72,165.68,3.09]
[1762729492716,0.03967117,165.72,165.68,8.5232]
[1762729492914,0.03967117,165.72,165.69,3.09]
[1762729493516,0.03967117,165.72,165.66,5.434]
[1762729493813,0.03967117,165.72,165.66,8.524]
[1762729494118,3.07967117,165.72,165.64,5.4346]
[1762729494320,3.07967117,165.72,165.64,8.5246]
[1762729494509,8.51197117,165.72,165.64,3.09]
[1762729495117,0.03967117,165.72,165.66,3.09]
[1762729495314,0.04132418,165.71,165.66,3.09]
[1762729495816,3.08132418,165.71,165.66,3.09]
[1762729496316,0.04132418,165.71,165.66,3.09]
[1762729497220,8.51392418,165.71,165.66,3.09]
[1762729497620,3.04,165.7,165.62,3.09]
[1762729497926,0.0423711,165.68,165.62,3.09]
[1762729498129,0.0423711,165.68,165.62,8.5252]
[1762729498615,0.0423711,165.68,165.64,3.09]
[1762729499210,0.0423711,165.68,165.66,8.5239]
[1762729499824,0.0423711,165.68,165.67,3.09]
[1762729500227,3.04,165.74,165.68,5.4332]
[1762729500734,3.04,165.77,165.68,3.09]
[1762729500917,3.04,165.77,165.64,3.09]
[1762729501121,5.4312,165.75,165.64,3.09]
[1762729501323,0.0389694,165.71,165.68,0.04044979]
[1762729501523,3.08297048,165.71,165.68,0.04329738]
[1762729501824,0.04297048,165.71,165.68,0.04329738]
[1762729502022,2.96297048,165.71,165.68,0.04329738]
[1762729503130,0.04297048,165.71,165.68,3.21329738]
[1762729503326,0.04297048,165.71,165.7,3.17]
[1762729503926,0.04297048,165.71,165.68,3.21329738]
[1762729505233,0.04297048,165.71,165.7,3.17]
[1762729505530,2.92,165.79,165.7,3.17]
[1762729505722,8.35,165.79,165.7,3.17]
[1762729506430,0.04113026,165.76,165.74,3.17]
[1762729506823,2.96113026,165.76,165.73,0.04267246]
[1762729507022,0.04113026,165.76,165.73,3.21267246]
[1762729507929,0.04113026,165.76,165.73,0.04267246]
[1762729508125,2.96113026,165.76,165.73,0.04267246]
[1762729508330,2.96113026,165.76,165.64,3.17]
[1762729508331,2.92,165.75,165.64,3.17]
[1762729508629,2.92,165.72,165.64,3.17]
[1762729509020,8.3526,165.71,165.64,3.17]
[1762729509227,2.92,165.71,165.64,3.17]
[1762729509422,0.04366972,165.69,165.66,0.04190213]
[1762729510020,2.92,165.68,165.66,0.04190213]
[1762729510631,8.3535,165.68,165.66,0.04190213]
[1762729511029,2.92,165.66,165.56,150.19876075]
[1762729511240,2.92,165.66,165.56,3.17]
[1762729511540,8.3546,165.65,165.56,8.6071]
[1762729511730,2.92,165.65,165.56,3.17]
[1762729511926,2.92,165.65,165.5,3.17]
[1762729512127,2.96188163,165.62,165.5,3.17]
[1762729512323,0.03959894,165.58,165.5,3.17]
[1762729512531,0.03959894,165.58,165.5,8.6092]
[1762729513222,0.03959894,165.58,165.52,3.17]
[1762729515327,2.95959894,165.58,165.47,3.17]
[1762729515530,0.04117964,165.54,165.47,3.17]
[1762729515736,2.96117964,165.54,165.37,3.17]
[1762729515931,0.04551629,165.47,165.41,3.17]
[1762729516538,2.96551629,165.47,165.36,8.6137]
[1762729516730,2.92,165.47,165.36,3.17]
[1762729517032,0.04278396,165.43,165.36,3.17]
[1762729517237,2.96278396,165.43,165.36,3.17]
[1762729517435,2.96278396,165.43,165.32,3.17]
[1762729517632,0.04509965,165.39,165.32,3.17]
[1762729518138,0.04509965,165.39,165.34,3.17]
[1762729518929,2.96509965,165.39,165.3,3.17]
[1762729519235,0.04545106,165.36,165.3,3.17]
[1762729520339,2.96545106,165.36,165.25,3.17]
[1762729520540,0.04233841,165.32,165.25,3.17]
[1762729520841,0.04233841,165.32,165.26,3.17]
[1762729522335,2.96233841,165.32,165.23,242.88564256]
[1762729522733,2.96233841,165.32,165.22,3.17]
[1762729522931,2.9599875,165.29,165.18,3.17]
[1762729523247,0.03964398,165.25,165.18,3.17]
[1762729523632,2.95964398,165.25,165.14,3.17]
[1762729523833,0.04110662,165.21,165.14,8.6211]
[1762729524039,0.04110662,165.21,165.14,3.17]
[1762729524438,2.92,165.49,165.22,3.17]
[1762729524641,2.92,165.39,165.23,3.17]
[1762729524842,2.92,165.39,165.26,4.27616099]
[1762729525039,2.92,165.43,165.32,3.17]
[1762729525438,2.92,165.43,165.36,3.21279989]
[1762729525439,0.03899113,165.39,165.36,3.21279989]
[1762729525930,0.03899113,165.39,165.37,3.17]
[1762729526339,0.03899113,165.39,165.36,0.04279989]
[1762729526543,2.95899113,165.39,165.36,0.04279989]
[1762729526848,2.92,165.38,165.28,3.17]
[1762729527348,2.92,165.37,165.24,3.17]
[1762729527748,8.3643,165.35,165.24,3.17]
[1762729528046,0.03895225,165.32,165.24,3.17]
[1762729528754,0.03895225,165.32,165.26,3.17]
[1762729528945,2.92,165.44,165.29,3.17]
[1762729529251,77.3,165.52,165.35,3.17]
[1762729529252,4.27616099,165.5,165.35,3.17]
[1762729529452,2.92,165.49,165.35,3.17]
[1762729529956,0.0381863,165.44,165.4,0.0432381]
[1762729530248,2.9581863,165.44,165.4,0.0432381]
[1762729530453,2.92,165.43,165.3,3.17]
[1762729530758,2.92,165.43,165.32,5.4452]
[1762729531052,2.92,165.43,165.33,3.17]
[1762729531853,2.92,165.38,165.28,3.17]
[1762729532045,0.04151775,165.35,165.28,3.17]
[1762729532244,0.04151775,165.35,165.26,5.4472]
[1762729532642,0.04151775,165.35,165.27,3.06]
[1762729533238,0.04151775,165.35,165.29,3.06]
[1762729533544,0.03817584,165.34,165.29,3.06]
[1762729533850,0.03817584,165.34,165.33,3.06]
[1762729534042,0.03857514,165.35,165.33,3.06]
[1762729534248,0.04387236,165.36,165.33,3.06]
[1762729534445,0.04387236,165.36,165.34,8.5046]
[1762729534750,2.98,165.47,165.35,3.06]
[1762729534953,8.4206,165.47,165.36,5.4439]
[1762729535146,2.98,165.47,165.36,3.06]
[1762729535551,2.98,165.47,165.4,0.04207296]
[1762729535749,0.04588107,165.43,165.4,0.04207296]
[1762729536855,0.04588107,165.43,165.4,8.54467296]
[1762729537350,0.04588107,165.43,165.41,3.06]
[1762729538054,0.04588107,165.43,165.4,0.04207296]
[1762729538851,0.04588107,165.43,165.4,3.10207296]
[1762729539354,0.04588107,165.43,165.4,0.04207296]
[1762729539857,0.04588107,165.43,165.4,3.10207296]
[1762729540846,0.04588107,165.43,165.42,3.06]
[1762729541056,77.3,165.52,165.42,3.06]
[1762729541357,80.28,165.52,165.42,3.06]
[1762729541857,80.28,165.52,165.42,8.5016]
[1762729542057,0.04050394,165.49,165.45,0.04260325]
[1762729542456,3.02050394,165.49,165.45,0.04260325]
[1762729542657,2.98,165.46,165.33,3.06]
[1762729543053,2.98,165.45,165.35,5.4442]
[1762729543755,0.04023272,165.42,165.38,3.10090225]
[1762729543950,0.03962957,165.42,165.38,0.03988904]
[1762729544156,3.01962957,165.42,165.38,0.03988904]
[1762729546257,0.03962957,165.42,165.38,0.03988904]
[1762729547251,0.03962957,165.42,165.39,2.98]
[1762729547652,0.03962957,165.42,165.4,5.4426]
[1762729547854,0.03962957,165.42,165.41,2.98]
[1762729549562,2.94,165.5,165.42,2.98]
[1762729549854,2.94,165.5,165.42,8.4219]
[1762729550051,2.94,165.5,165.35,2.98]
[1762729550255,2.94,165.47,165.35,2.98]
[1762729550454,0.04622958,165.43,165.39,3.01968448]
[1762729550658,0.04262102,165.43,165.39,3.01968448]
[1762729550853,0.04262102,165.43,165.39,8.46248448]
[1762729551564,0.04262102,165.43,165.4,2.98]
[1762729552458,2.98262102,165.43,165.39,0.03968448]
[1762729553860,2.94,165.41,165.3,2.98]
[1762729554462,2.94,165.41,165.33,8.4248]
[1762729554860,2.94,165.41,165.33,2.98]
[1762729555056,0.04194667,165.39,165.37,5.4435]
[1762729555361,0.04425802,165.4,165.37,2.98]
[1762729555565,0.04425802,165.4,165.37,3.02071878]
[1762729555760,0.04425802,165.4,165.39,2.98]
[1762729556361,2.94,165.49,165.42,5.4419]
[1762729556563,2.94,165.53,165.39,2.98]
[1762729556768,2.94,165.57,165.46,2.98]
[1762729556966,2.94,165.55,165.46,2.98]
[1762729557269,0.04112575,165.52,165.49,0.03863309]
[1762729557860,0.04112575,165.52,165.49,3.01863309]
[1762729558163,0.04112575,165.52,165.49,0.03863309]
[1762729558362,0.04112575,165.52,165.49,5.47803309]
[1762729558765,0.04112575,165.52,165.49,0.03863309]
[1762729560464,2.98112575,165.52,165.49,0.03863309]
[1762729561057,2.98112575,165.52,165.4,2.98]
[1762729561262,2.94,165.52,165.4,2.98]
[1762729561466,2.94,165.51,165.4,2.98]
[1762729562058,0.04061478,165.47,165.44,0.04241524]
[1762729562675,3.09061478,165.47,165.44,0.04241524]
[1762729562876,3.05,165.45,165.36,2.97]
[1762729563465,8.4911,165.45,165.37,5.4434]
[1762729563671,3.05,165.45,165.36,2.97]
[1762729563968,0.04469205,165.42,165.35,2.97]
[1762729564169,0.04474824,165.4,165.35,2.97]
[1762729564373,0.04474824,165.4,165.26,10.8941]
[1762729564568,0.04085429,165.35,165.27,2.97]
[1762729565174,0.04085429,165.35,165.34,2.97]
[1762729565571,0.04085429,165.35,165.25,19.34]
[1762729565572,0.04085429,165.35,165.3,2.97]
[1762729565875,0.03908914,165.34,165.3,2.97]
[1762729566074,0.042344,165.34,165.33,8.4147]
[1762729566375,0.042344,165.34,165.33,2.97]
[1762729566569,0.042344,165.34,165.31,2.97]
[1762729566774,0.0404927,165.34,165.26,2.97]
[1762729566973,0.04036829,165.32,165.19,77.38]
[1762729567176,0.04427662,165.27,165.21,8.4188]
[1762729567474,0.04427662,165.27,165.19,77.38]
[1762729567475,0.04427662,165.27,165.17,2.97]
[1762729567772,3.05,165.29,165.17,2.97]
[1762729567773,0.0411091,165.24,165.17,2.97]
[1762729568174,0.0411091,165.24,165.17,8.4202]
[1762729568386,84.5554,165.62,165.22,1.6]
[1762729568577,3.05,165.56,165.35,84.6871]
[1762729568778,3.05,165.56,165.43,1.6]
[1762729569284,3.05,165.52,165.34,49.92]
[1762729569475,0.03995336,165.45,165.42,1.6]
[1762729569679,3.05,165.52,165.42,1.6]
[1762729570687,0.03920453,165.49,165.45,1.64326352]
[1762729570884,3.05,165.57,165.45,1.64285687]
[1762729571080,4.10189977,165.62,165.5,7.0392]
[1762729571284,3.05,165.62,165.5,1.6]
[1762729571686,3.05,165.62,165.55,1.6]
[1762729571988,1.54774444,165.59,165.55,1.64470803]
[1762729572189,1.54774444,165.59,165.55,0.04470803]
[1762729572786,4.59774444,165.59,165.55,0.04470803]
[1762729573085,1.54774444,165.59,165.55,0.04470803]
[1762729573284,1.54774444,165.59,165.55,1.64470803]
[1762729573485,1.54774444,165.59,165.55,0.04470803]
[1762729574186,4.59774444,165.59,165.55,0.04470803]
[1762729574592,3.05,165.58,165.55,0.04470803]
[1762729575891,3.05,165.58,165.48,5.4397]
[1762729576986,0.04106025,165.55,165.51,0.04080773]
[1762729577188,0.04106025,165.55,165.51,1.64080773]
[1762729577498,3.09106025,165.55,165.51,0.04080773]
[1762729579992,0.04106025,165.55,165.51,0.04080773]
[1762729580290,3.09106025,165.55,165.51,0.04080773]
[1762729580496,3.05,165.53,165.4,1.6]
[1762729581397,0.03897635,165.48,165.45,1.6444479]
[1762729581592,0.03897635,165.48,165.45,7.0853479]
[1762729581895,0.03897635,165.48,165.46,1.6]
[1762729582197,0.03897635,165.48,165.45,5.4853479]
[1762729582396,0.03897635,165.48,165.45,7.0853479]
[1762729583093,0.03897635,165.48,165.47,7.0403]
[1762729583801,3.05,165.58,165.47,1.6]
[1762729584698,0.04077264,165.54,165.51,0.03914411]
[1762729585899,3.09077264,165.54,165.51,0.03914411]
[1762729586095,1.50165,165.59,165.51,1.63914411]
[1762729587099,0.04000792,165.57,165.51,1.63914411]
[1762729587794,0.04000792,165.57,165.52,5.4384]
[1762729587999,3.09000792,165.57,165.51,0.03914411]
[1762729588396,3.05,165.56,165.51,0.03914411]
[1762729589302,1.50165,165.59,165.52,1.6]
[1762729589602,3.05,165.67,165.53,1.6]
[1762729590299,3.05,165.61,165.58,0.03808243]
[1762729590495,3.05,165.61,165.58,0.04124383]
[1762729590496,3.09336344,165.61,165.58,0.04124383]
[1762729590697,3.09336344,165.61,165.48,1.6]
[1762729590897,3.05,165.61,165.51,5.439]
[1762729591094,3.05,165.61,165.48,1.6]
[1762729591505,5.4364,165.59,165.5,5.4393]
[1762729591704,0.04507456,165.56,165.53,0.04012885]
[1762729592600,2.92507456,165.56,165.43,1.6]
[1762729592904,2.88,165.55,165.43,1.6]
[1762729593101,2.88,165.55,165.37,1.6]
[1762729593304,2.88,165.49,165.37,1.6]
[1762729593695,2.88,165.44,165.41,0.04416957]
[1762729593910,2.92058732,165.44,165.28,1.6]
[1762729594095,7.16410005,165.42,165.28,1.6]
[1762729594299,2.88,165.41,165.28,1.6]
[1762729594704,2.88,165.41,165.24,1.64]
[1762729594906,0.040023,165.34,165.31,0.04189927]
[1762729595204,0.04089984,165.34,165.31,0.0384673]
[1762729597006,0.04089984,165.34,165.31,1.6784673]
[1762729597603,2.92089984,165.34,165.31,0.0384673]
[1762729597800,2.92089984,165.34,165.21,1.64]
[1762729598000,2.88,165.34,165.25,5.4475]
[1762729598906,2.88,165.34,165.16,84.7818]
[1762729598907,0.04436155,165.31,165.28,1.64]
[1762729599099,0.04015164,165.31,165.28,1.64]
[1762729599295,2.88,165.43,165.34,5.4444]
[1762729600303,0.04135187,165.4,165.37,0.04451146]
[1762729601309,0.04135187,165.4,165.37,1.68451146]
[1762729601802,0.04135187,165.4,165.38,5.4433]
[1762729602700,0.04135187,165.4,165.37,1.68451146]
[1762729603107,2.92135187,165.4,165.37,0.04451146]
[1762729603307,0.04135187,165.4,165.37,0.04451146]
[1762729608603,0.04135187,165.4,165.38,1.65]
[1762729608803,1.22105,165.5,165.39,1.2]
[1762729609113,3.17,165.49,165.39,5.4429]
[1762729609311,3.17,165.49,165.38,1.65]
[1762729609916,0.04061499,165.45,165.42,0.03967018]
[1762729611010,3.21061499,165.45,165.42,0.03967018]
[1762729611710,3.17,165.44,165.33,1.65]
[1762729612814,0.04226552,165.4,165.37,0.03919833]
[1762729613002,0.04226552,165.4,165.38,5.443]
[1762729613210,0.04226552,165.4,165.39,1.65]
[1762729614805,1.22105,165.5,165.4,1.61]
[1762729615221,1.22105,165.5,165.49,1.61]
[1762729615512,5e-05,165.5,165.49,1.61]
[1762729615712,0.04286694,165.51,165.5,5.4393]
[1762729615901,0.04205256,165.52,165.49,0.04457707]
[1762729616101,0.04372709,165.52,165.49,0.04338738]
[1762729617410,0.04372709,165.52,165.5,5.4393]